[Event "Early-Titled-Tuesday-Blitz-March-26-2024"]
[Site "Chess.com"]
[Date "2024.03.26"]
[Round "11"]
[White "Szparu"]
[Black "ChainedDowntohell"]
[Result "1-0"]
[WhiteElo "2825"]
[BlackElo "2547"]
[TimeControl "180+1"]
[EndTime "10:07:04 PDT"]
[Termination "Szparu won on time"]

1. d4 {[%clk 0:03:00.9]} 1... e6 {[%clk 0:02:56.7]} 2. e4 {[%clk 0:03:00.6]}
2... b6 {[%clk 0:02:54.6]} 3. Bd3 {[%clk 0:03:00.2]} 3... Bb7 {[%clk 0:02:55.1]}
4. f4 {[%clk 0:03:00.4]} 4... f5 {[%clk 0:02:52.2]} 5. exf5 {[%clk 0:02:56.1]}
5... exf5 {[%clk 0:02:39.8]} 6. Nf3 {[%clk 0:02:55.3]} 6... Nf6 {[%clk 0:02:36]}
7. Bxf5 {[%clk 0:02:55.1]} 7... Qe7+ {[%clk 0:02:27.9]} 8. Qe2 {[%clk
0:02:47.4]} 8... Bxf3 {[%clk 0:02:27.8]} 9. gxf3 {[%clk 0:02:46.1]} 9... Nc6
{[%clk 0:02:24.8]} 10. c3 {[%clk 0:02:45.2]} 10... g6 {[%clk 0:02:17.7]} 11. Bd3
{[%clk 0:02:43]} 11... Bh6 {[%clk 0:02:16.2]} 12. Qxe7+ {[%clk 0:02:35.2]} 12...
Nxe7 {[%clk 0:02:16.1]} 13. Nd2 {[%clk 0:02:23.5]} 13... Nfd5 {[%clk 0:02:05.2]}
14. Nc4 {[%clk 0:02:16.8]} 14... Bxf4 {[%clk 0:02:00.7]} 15. Bxf4 {[%clk
0:02:13.3]} 15... Nxf4 {[%clk 0:02:01.6]} 16. Bc2 {[%clk 0:02:13.1]} 16... O-O
{[%clk 0:01:57.9]} 17. Kd2 {[%clk 0:02:13.3]} 17... Nf5 {[%clk 0:01:49.9]} 18.
Raf1 {[%clk 0:02:05.8]} 18... Rae8 {[%clk 0:01:47]} 19. Ne5 {[%clk 0:02:00.9]}
19... Re7 {[%clk 0:01:33.8]} 20. Re1 {[%clk 0:01:55.5]} 20... Nh4 {[%clk
0:01:27.8]} 21. Rhf1 {[%clk 0:01:44.7]} 21... d6 {[%clk 0:01:18.8]} 22. Nd3
{[%clk 0:01:35.6]} 22... Rxe1 {[%clk 0:01:17.1]} 23. Nxe1 {[%clk 0:01:35.7]}
23... Re8 {[%clk 0:01:14]} 24. Bd1 {[%clk 0:01:33.2]} 24... Kg7 {[%clk
0:01:09.5]} 25. Nc2 {[%clk 0:01:30.5]} 25... Nhg2 {[%clk 0:01:07.9]} 26. Rf2
{[%clk 0:01:28]} 26... Kf6 {[%clk 0:01:04.1]} 27. Nb4 {[%clk 0:01:22.8]} 27...
a5 {[%clk 0:00:54.2]} 28. Na6 {[%clk 0:01:09.6]} 28... Re7 {[%clk 0:00:46.8]}
29. b4 {[%clk 0:01:09.9]} 29... axb4 {[%clk 0:00:34.2]} 30. Nxb4 {[%clk
0:01:10.8]} 30... c5 {[%clk 0:00:29.5]} 31. Nc6 {[%clk 0:01:02.9]} 31... Rc7
{[%clk 0:00:22.1]} 32. Ba4 {[%clk 0:01:02.8]} 32... Nh4 {[%clk 0:00:12.3]} 33.
Rf1 {[%clk 0:00:56.1]} 33... Rc8 {[%clk 0:00:12.6]} 34. Rb1 {[%clk 0:00:54.4]}
34... Ra8 {[%clk 0:00:09.8]} 35. Bb3 {[%clk 0:00:45.2]} 35... g5 {[%clk
0:00:08.9]} 36. Rf1 {[%clk 0:00:31]} 36... b5 {[%clk 0:00:08.9]} 37. c4 {[%clk
0:00:29.6]} 37... bxc4 {[%clk 0:00:08.7]} 38. Bxc4 {[%clk 0:00:30.5]} 38... cxd4
{[%clk 0:00:06.6]} 39. Bb3 {[%clk 0:00:27.4]} 39... Nf5 {[%clk 0:00:04.1]} 40.
a4 {[%clk 0:00:23]} 40... Ra6 {[%clk 0:00:02.7]} 41. Rc1 {[%clk 0:00:22.5]}
41... Rb6 {[%clk 0:00:02.4]} 42. Bd1 {[%clk 0:00:10.2]} 42... Rb2+ {[%clk
0:00:01.7]} 43. Rc2 {[%clk 0:00:10.7]} 43... Rb1 {[%clk 0:00:02.2]} 44. a5
{[%clk 0:00:09.7]} 44... Ra1 {[%clk 0:00:01.5]} 45. Rc1 {[%clk 0:00:09.2]} 45...
Ra3 {[%clk 0:00:01.1]} 46. Rc2 {[%clk 0:00:09.8]} 46... Ra1 {[%clk 0:00:01.2]}
47. Rb2 {[%clk 0:00:09.2]} 47... Ne3 {[%clk 0:00:01.6]} 48. Bb3 {[%clk
0:00:09.1]} 48... Nf1+ {[%clk 0:00:01.7]} 49. Kc2 {[%clk 0:00:08.6]} 49... d3+
{[%clk 0:00:02]} 50. Kc3 {[%clk 0:00:08.6]} 50... Ne3 {[%clk 0:00:02.1]} 51. Kd4
{[%clk 0:00:08.1]} 51... Nf5+ {[%clk 0:00:02]} 52. Kc3 {[%clk 0:00:07.7]} 52...
Ne3 {[%clk 0:00:01.9]} 53. a6 {[%clk 0:00:07.2]} 53... Rxa6 {[%clk 0:00:01.3]}
54. Nb4 {[%clk 0:00:07.4]} 54... Ra1 {[%clk 0:00:01.2]} 55. Kd4 {[%clk 0:00:07]}
55... Nf5+ {[%clk 0:00:01.4]} 56. Kc3 {[%clk 0:00:07.6]} 56... Rc1+ {[%clk
0:00:01.9]} 57. Kd2 {[%clk 0:00:07.9]} 57... Rh1 {[%clk 0:00:02.8]} 58. Kc3
{[%clk 0:00:07.9]} 58... Rc1+ {[%clk 0:00:02.6]} 59. Kd2 {[%clk 0:00:08.3]}
59... Rh1 {[%clk 0:00:03.5]} 60. Kc3 {[%clk 0:00:08.9]} 60... Nh4 {[%clk
0:00:03.7]} 61. Nd5+ {[%clk 0:00:07.4]} 61... Nxd5+ {[%clk 0:00:03.9]} 62. Bxd5
{[%clk 0:00:08.3]} 62... Nf5 {[%clk 0:00:03.6]} 63. Kxd3 {[%clk 0:00:08.3]}
63... Rg1 {[%clk 0:00:03.5]} 64. Be4 {[%clk 0:00:06.9]} 64... h5 {[%clk
0:00:03.5]} 65. Rb7 {[%clk 0:00:06.5]} 65... Ne7 {[%clk 0:00:03.4]} 66. Rb6
{[%clk 0:00:06.5]} 66... Ke5 {[%clk 0:00:03.4]} 67. Ke3 {[%clk 0:00:06.7]} 67...
d5 {[%clk 0:00:03.6]} 68. Bd3 {[%clk 0:00:06.3]} 68... d4+ {[%clk 0:00:03.6]}
69. Kf2 {[%clk 0:00:06.8]} 69... Rd1 {[%clk 0:00:03]} 70. Rb5+ {[%clk
0:00:07.3]} 70... Kf4 {[%clk 0:00:02.8]} 71. Be2 {[%clk 0:00:06.9]} 71... Rd2
{[%clk 0:00:03.1]} 72. Ke1 {[%clk 0:00:07.2]} 72... Ra2 {[%clk 0:00:03]} 73. Rb4
{[%clk 0:00:05.9]} 73... Nf5 {[%clk 0:00:02.9]} 74. Bd3 {[%clk 0:00:06.3]} 74...
Ne3 {[%clk 0:00:01.9]} 75. Rxd4+ {[%clk 0:00:06.5]} 75... Kxf3 {[%clk
0:00:01.8]} 76. Be4+ {[%clk 0:00:07.1]} 76... Kf4 {[%clk 0:00:02.5]} 77. Bb1+
{[%clk 0:00:07.4]} 77... Ke5 {[%clk 0:00:02.5]} 78. Re4+ {[%clk 0:00:08]} 78...
Kd5 {[%clk 0:00:02.5]} 79. Rxe3 {[%clk 0:00:08.7]} 79... Ra1 {[%clk 0:00:03.2]}
80. Rb3 {[%clk 0:00:09.1]} 80... Ke5 {[%clk 0:00:03.8]} 81. Kf2 {[%clk
0:00:08.7]} 81... h4 {[%clk 0:00:03]} 82. h3 {[%clk 0:00:08.3]} 82... g4 {[%clk
0:00:01.8]} 83. hxg4 {[%clk 0:00:08.1]} 83... Kf4 {[%clk 0:00:02.4]} 84. Rb4+
{[%clk 0:00:08.1]} 84... Kg5 {[%clk 0:00:02.9]} 85. Bf5 {[%clk 0:00:05.8]} 85...
Ra2+ {[%clk 0:00:02.4]} 86. Ke3 {[%clk 0:00:05.7]} 86... Ra3+ {[%clk 0:00:02.8]}
87. Bd3 {[%clk 0:00:05.9]} 87... h3 {[%clk 0:00:02.1]} 88. Rb2 {[%clk
0:00:03.1]} 88... Kxg4 {[%clk 0:00:01.7]} 89. Kd4 {[%clk 0:00:03.3]} 89... Kf4
{[%clk 0:00:01.4]} 90. Rf2+ {[%clk 0:00:02.9]} 90... Kg3 {[%clk 0:00:01.4]} 91.
Rf8 {[%clk 0:00:03.2]} 91... Ra4+ {[%clk 0:00:01.1]} 92. Ke3 {[%clk 0:00:03.4]}
1-0

[Event "Early-Titled-Tuesday-Blitz-March-26-2024"]
[Site "Chess.com"]
[Date "2024.03.26"]
[Round "11"]
[White "imdvb6307"]
[Black "FlemingA"]
[Result "1-0"]
[WhiteElo "2522"]
[BlackElo "2442"]
[TimeControl "180+1"]
[EndTime "10:07:07 PDT"]
[Termination "imdvb6307 won by resignation"]

1. d4 {[%clk 0:03:00.9]} 1... d6 {[%clk 0:02:58.8]} 2. Nf3 {[%clk 0:02:56.8]}
2... g6 {[%clk 0:02:59.1]} 3. c4 {[%clk 0:02:53.1]} 3... Bg7 {[%clk 0:02:58.8]}
4. e4 {[%clk 0:02:53.2]} 4... c5 {[%clk 0:02:57]} 5. h3 {[%clk 0:02:46.8]} 5...
Nc6 {[%clk 0:02:56]} 6. d5 {[%clk 0:02:46.2]} 6... Nd4 {[%clk 0:02:56.2]} 7. Nc3
{[%clk 0:02:41.5]} 7... Nxf3+ {[%clk 0:02:37.2]} 8. Qxf3 {[%clk 0:02:40.3]} 8...
Nf6 {[%clk 0:02:38.1]} 9. Bf4 {[%clk 0:02:22.4]} 9... O-O {[%clk 0:02:35.8]} 10.
Qe3 {[%clk 0:02:22]} 10... Re8 {[%clk 0:02:35]} 11. O-O-O {[%clk 0:02:21.7]}
11... e6 {[%clk 0:02:34.8]} 12. dxe6 {[%clk 0:02:21.4]} 12... Bxe6 {[%clk
0:02:26.9]} 13. Bxd6 {[%clk 0:02:16.5]} 13... Qa5 {[%clk 0:02:16.5]} 14. Qxc5
{[%clk 0:02:14.8]} 14... Qxc5 {[%clk 0:02:09.4]} 15. Bxc5 {[%clk 0:02:14.9]}
15... Rec8 {[%clk 0:02:08.9]} 16. Bd4 {[%clk 0:02:11.3]} 16... Bxc4 {[%clk
0:02:07.8]} 17. Bxc4 {[%clk 0:02:11.4]} 17... Rxc4 {[%clk 0:02:08.7]} 18. Kb1
{[%clk 0:02:08.7]} 18... Re8 {[%clk 0:01:53]} 19. f3 {[%clk 0:02:07.9]} 19... a6
{[%clk 0:01:52]} 20. Rhe1 {[%clk 0:01:18.9]} 20... b5 {[%clk 0:01:45.2]} 21. Rd3
{[%clk 0:01:11.7]} 21... b4 {[%clk 0:01:29.4]} 22. Bxf6 {[%clk 0:00:57.7]} 22...
Bxf6 {[%clk 0:01:28.5]} 23. Nd5 {[%clk 0:00:57.7]} 23... Bg7 {[%clk 0:01:24.2]}
24. Rc1 {[%clk 0:00:56.4]} 24... Rxc1+ {[%clk 0:01:20.6]} 25. Kxc1 {[%clk
0:00:56.3]} 25... a5 {[%clk 0:01:14.7]} 26. Kc2 {[%clk 0:00:53.7]} 26... Rc8+
{[%clk 0:01:11.9]} 27. Kb3 {[%clk 0:00:53.5]} 27... Rc1 {[%clk 0:01:09.6]} 28.
Rd2 {[%clk 0:00:53.6]} 28... h5 {[%clk 0:00:56.6]} 29. Nb6 {[%clk 0:00:52.7]}
29... Bf8 {[%clk 0:00:40.8]} 30. Rc2 {[%clk 0:00:48.8]} 30... Ra1 {[%clk
0:00:33]} 31. Nc4 {[%clk 0:00:44.7]} 31... a4+ {[%clk 0:00:29.3]} 32. Kxa4
{[%clk 0:00:44.9]} 32... Rxa2+ {[%clk 0:00:29.8]} 33. Kb3 {[%clk 0:00:45.2]}
33... Ra1 {[%clk 0:00:28.9]} 34. Ne3 {[%clk 0:00:43.7]} 34... Ra8 {[%clk
0:00:18.9]} 35. Nd5 {[%clk 0:00:43.6]} 35... Rb8 {[%clk 0:00:19.3]} 36. Rc4
{[%clk 0:00:43.9]} 36... Kg7 {[%clk 0:00:18.9]} 37. Nxb4 {[%clk 0:00:43.3]}
37... Rd8 {[%clk 0:00:18.3]} 38. Kc2 {[%clk 0:00:42.5]} 38... Rb8 {[%clk
0:00:19.2]} 39. Nd5 {[%clk 0:00:41.6]} 39... h4 {[%clk 0:00:18.5]} 40. b4 {[%clk
0:00:41.4]} 40... Bd6 {[%clk 0:00:18.4]} 41. Rc6 {[%clk 0:00:39.8]} 41... Bxb4
{[%clk 0:00:18]} 42. e5 {[%clk 0:00:30.5]} 42... Bf8 {[%clk 0:00:13.3]} 43. Kd3
{[%clk 0:00:26.7]} 43... Re8 {[%clk 0:00:12.7]} 44. Kd4 {[%clk 0:00:26]} 44...
Be7 {[%clk 0:00:10.4]} 45. Rc7 {[%clk 0:00:25.9]} 45... Bg5 {[%clk 0:00:08.8]}
46. f4 {[%clk 0:00:25.1]} 46... Bh6 {[%clk 0:00:09.3]} 47. Rd7 {[%clk
0:00:19.6]} 47... Re6 {[%clk 0:00:07.6]} 48. Ke4 {[%clk 0:00:19.2]} 48... Ra6
{[%clk 0:00:05.2]} 49. Nc3 {[%clk 0:00:15.5]} 49... Kg8 {[%clk 0:00:03.2]} 50.
Rd2 {[%clk 0:00:14.9]} 50... Bf8 {[%clk 0:00:03.3]} 51. Rf2 {[%clk 0:00:13.2]}
51... Bb4 {[%clk 0:00:03.8]} 52. Nd5 {[%clk 0:00:13]} 52... Bc5 {[%clk
0:00:04.5]} 53. Rc2 {[%clk 0:00:11.9]} 53... Ra4+ {[%clk 0:00:05]} 54. Kf3
{[%clk 0:00:12.3]} 54... Ra3+ {[%clk 0:00:04.9]} 55. Kg4 {[%clk 0:00:12.6]}
55... Bf8 {[%clk 0:00:04.1]} 56. Kxh4 {[%clk 0:00:11]} 56... Ra5 {[%clk
0:00:04.1]} 57. Ne3 {[%clk 0:00:10.6]} 57... Ra4 {[%clk 0:00:04.3]} 58. Kg3
{[%clk 0:00:10.6]} 58... Ra3 {[%clk 0:00:04.5]} 59. Re2 {[%clk 0:00:09.9]} 59...
Bc5 {[%clk 0:00:04.9]} 60. Kf3 {[%clk 0:00:10.5]} 60... Kg7 {[%clk 0:00:05.6]}
61. Ke4 {[%clk 0:00:10.9]} 61... Ra4+ {[%clk 0:00:06]} 62. Kd5 {[%clk
0:00:11.1]} 62... Be7 {[%clk 0:00:06.3]} 63. g3 {[%clk 0:00:09.9]} 63... Ra5+
{[%clk 0:00:06.2]} 64. Ke4 {[%clk 0:00:09.9]} 64... Ra4+ {[%clk 0:00:07.1]} 65.
Kf3 {[%clk 0:00:10]} 65... Bc5 {[%clk 0:00:07.8]} 66. Kg4 {[%clk 0:00:09]} 66...
Re4 {[%clk 0:00:07.3]} 67. Kf3 {[%clk 0:00:07.9]} 67... Ra4 {[%clk 0:00:07.7]}
68. f5 {[%clk 0:00:08.4]} 68... Kh6 {[%clk 0:00:03.9]} 69. fxg6 {[%clk
0:00:08.3]} 69... fxg6 {[%clk 0:00:04.8]} 70. Ng4+ {[%clk 0:00:08.2]} 70... Kg7
{[%clk 0:00:05.1]} 71. e6 {[%clk 0:00:08.3]} 71... Ra3+ {[%clk 0:00:05.6]} 72.
Kg2 {[%clk 0:00:08.2]} 72... Be7 {[%clk 0:00:06.1]} 73. h4 {[%clk 0:00:07.9]}
73... Ra4 {[%clk 0:00:05.8]} 74. Rf2 {[%clk 0:00:07.9]} 74... Rxg4 {[%clk
0:00:05.9]} 75. Rf7+ {[%clk 0:00:08.1]} 75... Kh6 {[%clk 0:00:06]} 76. Rxe7
{[%clk 0:00:08.4]} 76... Re4 {[%clk 0:00:06.9]} 77. Re8 {[%clk 0:00:08.8]} 77...
Kg7 {[%clk 0:00:06.8]} 78. Kf3 {[%clk 0:00:09.2]} 78... Re1 {[%clk 0:00:06.9]}
79. Kg4 {[%clk 0:00:09.7]} 79... Kf6 {[%clk 0:00:07]} 80. Rf8+ {[%clk
0:00:09.2]} 80... Kg7 {[%clk 0:00:07.4]} 81. Rf7+ {[%clk 0:00:09.4]} 81... Kg8
{[%clk 0:00:07.9]} 82. Rf6 {[%clk 0:00:09.6]} 82... Kg7 {[%clk 0:00:08]} 83.
Rf7+ {[%clk 0:00:09.4]} 83... Kg8 {[%clk 0:00:08.2]} 84. Re7 {[%clk 0:00:09.8]}
84... Re5 {[%clk 0:00:07.5]} 85. Kf4 {[%clk 0:00:09.7]} 85... Rf5+ {[%clk
0:00:06.6]} 86. Ke4 {[%clk 0:00:09.6]} 86... Rf1 {[%clk 0:00:06]} 87. g4 {[%clk
0:00:09.8]} 87... Rh1 {[%clk 0:00:05.3]} 88. Kf4 {[%clk 0:00:09.3]} 88... Rxh4
{[%clk 0:00:05.1]} 89. Kg5 {[%clk 0:00:09.9]} 89... Rh1 {[%clk 0:00:05.2]} 90.
Kxg6 {[%clk 0:00:10.3]} 90... Rf1 {[%clk 0:00:04.5]} 91. Re8+ {[%clk 0:00:10.3]}
91... Rf8 {[%clk 0:00:05.4]} 92. Rxf8+ {[%clk 0:00:10.3]} 92... Kxf8 {[%clk
0:00:06.3]} 93. Kf6 {[%clk 0:00:10.8]} 93... Ke8 {[%clk 0:00:06.8]} 94. e7
{[%clk 0:00:11.3]} 94... Kd7 {[%clk 0:00:05.6]} 95. Kf7 {[%clk 0:00:11.9]} 95...
Kd6 {[%clk 0:00:06.3]} 96. e8=Q {[%clk 0:00:12.3]} 1-0

[Event "Early-Titled-Tuesday-Blitz-March-26-2024"]
[Site "Chess.com"]
[Date "2024.03.26"]
[Round "11"]
[White "Mysterio47"]
[Black "sergoy"]
[Result "0-1"]
[WhiteElo "2723"]
[BlackElo "2914"]
[TimeControl "180+1"]
[EndTime "10:07:08 PDT"]
[Termination "sergoy won on time"]

1. e4 {[%clk 0:03:00.9]} 1... c5 {[%clk 0:03:00]} 2. Nf3 {[%clk 0:03:01.1]} 2...
d6 {[%clk 0:03:00.3]} 3. d4 {[%clk 0:03:01.3]} 3... cxd4 {[%clk 0:03:01.2]} 4.
Nxd4 {[%clk 0:03:02.2]} 4... Nf6 {[%clk 0:03:01.9]} 5. Nc3 {[%clk 0:03:02.9]}
5... a6 {[%clk 0:03:02.6]} 6. Be3 {[%clk 0:03:03.6]} 6... e5 {[%clk 0:03:02.7]}
7. Nf3 {[%clk 0:03:04.3]} 7... Be7 {[%clk 0:03:02.4]} 8. Bc4 {[%clk 0:03:04.8]}
8... O-O {[%clk 0:03:02.9]} 9. Bb3 {[%clk 0:03:05.1]} 9... Be6 {[%clk
0:03:03.1]} 10. O-O {[%clk 0:03:04.4]} 10... Qc7 {[%clk 0:03:03]} 11. Qe2 {[%clk
0:03:03]} 11... Nbd7 {[%clk 0:03:02.6]} 12. Rfd1 {[%clk 0:03:01.8]} 12... Rfc8
{[%clk 0:03:02.2]} 13. h3 {[%clk 0:02:55.7]} 13... b5 {[%clk 0:03:02.1]} 14. a3
{[%clk 0:02:52.1]} 14... Qb7 {[%clk 0:02:58.5]} 15. Bg5 {[%clk 0:02:42.5]} 15...
h6 {[%clk 0:02:46.1]} 16. Bxf6 {[%clk 0:02:41]} 16... Nxf6 {[%clk 0:02:46.6]}
17. Nd5 {[%clk 0:02:38.8]} 17... Bxd5 {[%clk 0:02:29.8]} 18. Bxd5 {[%clk
0:02:35.9]} 18... Nxd5 {[%clk 0:02:30.3]} 19. Rxd5 {[%clk 0:02:36.5]} 19... b4
{[%clk 0:02:26.4]} 20. axb4 {[%clk 0:02:32.9]} 20... Qxb4 {[%clk 0:02:27.3]} 21.
c3 {[%clk 0:02:32.2]} 21... Qb3 {[%clk 0:02:25.5]} 22. Ra3 {[%clk 0:02:26.9]}
22... Qb7 {[%clk 0:02:25.1]} 23. Ne1 {[%clk 0:02:19.4]} 23... Bd8 {[%clk
0:02:20.1]} 24. Nd3 {[%clk 0:02:10.1]} 24... a5 {[%clk 0:02:20.3]} 25. Qd1
{[%clk 0:02:00.3]} 25... Ra6 {[%clk 0:02:18.4]} 26. Rb3 {[%clk 0:01:57]} 26...
Rb6 {[%clk 0:02:09.5]} 27. Rxb6 {[%clk 0:01:55.4]} 27... Qxb6 {[%clk 0:02:10.4]}
28. Qa4 {[%clk 0:01:49.8]} 28... Rb8 {[%clk 0:02:00.6]} 29. b4 {[%clk
0:01:48.3]} 29... axb4 {[%clk 0:01:57.2]} 30. cxb4 {[%clk 0:01:46.9]} 30... Qc7
{[%clk 0:01:51.5]} 31. Qa6 {[%clk 0:01:41.7]} 31... Rb6 {[%clk 0:01:49.3]} 32.
Qa8 {[%clk 0:01:38.8]} 32... Kh7 {[%clk 0:01:48.9]} 33. Kh2 {[%clk 0:01:29.2]}
33... Rb8 {[%clk 0:01:40.3]} 34. Qa2 {[%clk 0:01:28.4]} 34... Qe7 {[%clk
0:01:32.2]} 35. b5 {[%clk 0:01:24.6]} 35... Bb6 {[%clk 0:01:28.1]} 36. Nb4
{[%clk 0:01:21.6]} 36... Qf6 {[%clk 0:01:27.3]} 37. Nc6 {[%clk 0:01:20.7]} 37...
Bxf2 {[%clk 0:01:18.1]} 38. Qd2 {[%clk 0:01:07]} 38... Rb6 {[%clk 0:00:50.1]}
39. Rxd6 {[%clk 0:00:58.6]} 39... Qh4 {[%clk 0:00:50.2]} 40. Rd5 {[%clk
0:00:49]} 40... Bg3+ {[%clk 0:00:46.4]} 41. Kh1 {[%clk 0:00:49]} 41... Qxe4
{[%clk 0:00:47]} 42. Qd3 {[%clk 0:00:22.4]} 42... Qxd3 {[%clk 0:00:35.5]} 43.
Rxd3 {[%clk 0:00:23.1]} 43... Bf4 {[%clk 0:00:35.7]} 44. Rb3 {[%clk 0:00:20.7]}
44... e4 {[%clk 0:00:32.6]} 45. Kg1 {[%clk 0:00:18.9]} 45... Bc7 {[%clk
0:00:30.1]} 46. g4 {[%clk 0:00:15.9]} 46... g6 {[%clk 0:00:29.1]} 47. Kf2 {[%clk
0:00:14.4]} 47... f5 {[%clk 0:00:29.5]} 48. gxf5 {[%clk 0:00:14.8]} 48... gxf5
{[%clk 0:00:30.4]} 49. Ne7 {[%clk 0:00:13.8]} 49... Bd8 {[%clk 0:00:22.7]} 50.
Nd5 {[%clk 0:00:10.5]} 50... Rd6 {[%clk 0:00:22.7]} 51. Nf4 {[%clk 0:00:09.9]}
51... Bb6+ {[%clk 0:00:20.5]} 52. Ke2 {[%clk 0:00:09.7]} 52... Rd7 {[%clk
0:00:15.6]} 53. Rc3 {[%clk 0:00:08.8]} 53... Ra7 {[%clk 0:00:15.7]} 54. Rc6
{[%clk 0:00:08.3]} 54... Ra2+ {[%clk 0:00:15.9]} 55. Kd1 {[%clk 0:00:08.8]}
55... Be3 {[%clk 0:00:15.6]} 56. Rc7+ {[%clk 0:00:05.8]} 56... Kg8 {[%clk
0:00:15.4]} 57. Rc8+ {[%clk 0:00:05.9]} 57... Kf7 {[%clk 0:00:15.5]} 58. Rc7+
{[%clk 0:00:06.5]} 58... Ke8 {[%clk 0:00:15.4]} 59. Ne6 {[%clk 0:00:05.8]} 59...
f4 {[%clk 0:00:14.5]} 60. Ng7+ {[%clk 0:00:05.7]} 60... Kf8 {[%clk 0:00:13.7]}
61. Ne6+ {[%clk 0:00:06.4]} 61... Kg8 {[%clk 0:00:14.2]} 62. b6 {[%clk
0:00:03.1]} 62... Bxb6 {[%clk 0:00:07.6]} 63. Rc8+ {[%clk 0:00:03.1]} 63... Kf7
{[%clk 0:00:07.3]} 64. Nxf4 {[%clk 0:00:04]} 64... Be3 {[%clk 0:00:06.1]} 65.
Rc7+ {[%clk 0:00:02.3]} 65... Ke8 {[%clk 0:00:04.2]} 66. Ne6 {[%clk 0:00:02.9]}
66... Bf2 {[%clk 0:00:03.6]} 67. Ng7+ {[%clk 0:00:02.7]} 67... Kf8 {[%clk
0:00:03.3]} 68. Ne6+ {[%clk 0:00:02.9]} 68... Kg8 {[%clk 0:00:03.7]} 69. Rc2
{[%clk 0:00:03.2]} 69... Ra1+ {[%clk 0:00:01.7]} 70. Ke2 {[%clk 0:00:03.5]}
70... Bh4 {[%clk 0:00:02.6]} 71. Rc8+ {[%clk 0:00:03.1]} 71... Kf7 {[%clk
0:00:02.5]} 72. Nd4 {[%clk 0:00:01.9]} 72... Re1+ {[%clk 0:00:03.2]} 73. Kd2
{[%clk 0:00:02.5]} 73... Rg1 {[%clk 0:00:03.3]} 74. Ne2 {[%clk 0:00:02.7]} 74...
Rh1 {[%clk 0:00:02.8]} 75. Rc7+ {[%clk 0:00:03.2]} 75... Kg6 {[%clk 0:00:02.7]}
76. Rc6+ {[%clk 0:00:03.7]} 76... Kh5 {[%clk 0:00:02.8]} 77. Nf4+ {[%clk
0:00:04.1]} 77... Kg5 {[%clk 0:00:03.4]} 78. Ne6+ {[%clk 0:00:04]} 78... Kf5
{[%clk 0:00:03.7]} 79. Ng7+ {[%clk 0:00:04.2]} 79... Ke5 {[%clk 0:00:03.3]} 80.
Ke3 {[%clk 0:00:01.5]} 80... Bg5+ {[%clk 0:00:03.1]} 81. Ke2 {[%clk 0:00:01.6]}
81... Rh2+ {[%clk 0:00:03.3]} 82. Ke1 {[%clk 0:00:01.7]} 82... Rxh3 {[%clk
0:00:04]} 83. Re6+ {[%clk 0:00:01.3]} 83... Kf4 {[%clk 0:00:04.1]} 84. Ra6
{[%clk 0:00:01.2]} 84... Kf3 {[%clk 0:00:04.5]} 0-1